bitfinex/quotes_SOLUSD_20250310
["timestamp","ask_amount","ask_price","bid_price","bid_amount"]
[1741572232853,42.64068665,127.66,127.65,0.0001]
[1741572233347,23.99103779,127.66,127.65,0.0001]
[1741572233551,31.82433779,127.66,127.65,0.0001]
[1741572234148,7.8333,127.66,127.65,0.0001]
[1741572234340,82.4,127.72,127.65,0.0001]
[1741572234542,26.47924886,127.72,127.66,23.99103779]
[1741572234749,23.99103779,127.7,127.65,23.99113779]
[1741572235122,26.47924886,127.72,127.66,23.99103779]
[1741572235123,23.99103779,127.71,127.66,23.99103779]
[1741572235328,7.8296,127.72,127.67,23.99103779]
[1741572235727,31.82063779,127.72,127.67,23.99103779]
[1741572237730,23.99103779,127.71,127.65,118.83043779]
[1741572237929,31.82063779,127.72,127.67,23.99103779]
[1741572239454,7.8296,127.72,127.68,23.99103779]
[1741572239658,7.8296,127.72,127.67,23.99103779]
[1741572239955,23.99103779,127.71,127.66,23.99103779]
[1741572240253,7.8296,127.72,127.67,23.99103779]
[1741572240448,7.8296,127.72,127.68,23.99103779]
[1741572240751,23.99103779,127.7,127.65,203.0194]
[1741572241052,43.99103779,127.69,127.65,0.0001]
[1741572241250,7.832,127.68,127.65,0.0001]
[1741572241434,23.99103779,127.67,127.65,0.0001]
[1741572241631,23.99103779,127.66,127.65,0.0001]
[1741572242233,42.64068665,127.66,127.65,0.0001]
[1741572243233,50.47398665,127.66,127.65,0.0001]
[1741572243836,64.22388665,127.64,127.63,0.0001]
[1741572245459,72.05838665,127.64,127.63,0.0001]
[1741572250146,20.0,127.61,127.6,0.063]
[1741572250460,38.64964886,127.59,127.58,0.063]
[1741572250666,62.64068665,127.59,127.58,0.063]
[1741572250840,70.47828665,127.59,127.58,0.063]
[1741572251341,76.85225888,127.59,127.57,0.063]
[1741572251546,44.21128665,127.58,127.57,0.0001]
[1741572252365,18.64964886,127.57,127.54,0.03]
[1741572252541,23.99103779,127.56,127.54,0.03]
[1741572252742,50.48008665,127.56,127.54,0.03]
[1741572258068,7.839,127.57,127.54,0.03]
[1741572258278,31.83003779,127.57,127.54,0.03]
[1741572258660,23.99103779,127.56,127.54,0.03]
[1741572259079,50.48008665,127.56,127.54,0.03]
[1741572259458,31.83043779,127.56,127.54,0.03]
[1741572259856,82.37,127.54,127.53,0.568]
[1741572260150,20.0,127.47,127.46,0.505]
[1741572260375,43.99103779,127.47,127.46,0.505]
[1741572261185,51.83593779,127.47,127.46,0.505]
[1741572261485,7.8449,127.47,127.46,0.505]
[1741572261843,31.83593779,127.47,127.46,0.505]
[1741572262269,65.04508051,127.47,127.46,0.505]
[1741572262860,84.65748051,127.47,127.42,0.063]
[1741572263061,38.55053165,127.44,127.42,0.063]
[1741572263256,7.8474,127.43,127.42,0.063]
[1741572263676,46.39793165,127.43,127.42,0.063]
[1741572264075,7.8474,127.43,127.42,0.063]
[1741572264590,46.39793165,127.43,127.42,0.063]
[1741572266788,7.8474,127.43,127.42,0.063]
[1741572267085,46.39793165,127.43,127.42,0.063]
[1741572268474,46.39793165,127.43,127.42,0.0001]
[1741572274685,46.39753165,127.44,127.42,0.0001]
[1741572274995,38.55053165,127.43,127.42,0.0001]
[1741572275783,57.20018051,127.43,127.42,0.0001]
[1741572276679,65.04758051,127.43,127.42,0.0001]
[1741572281088,20.31474886,127.41,127.4,1.87e-05]
[1741572281284,58.86528051,127.41,127.4,1.87e-05]
[1741572282375,66.71388051,127.41,127.4,1.87e-05]
[1741572283177,18.64964886,127.4,127.38,0.0001]
[1741572283481,20.0,127.36,127.29,6.1434]
[1741572283698,38.55053165,127.33,127.29,6.1434]
[1741572284502,31.98893018,127.33,127.29,6.1434]
[1741572286299,24.13493018,127.34,127.29,6.1434]
[1741572286478,31.98783018,127.34,127.29,30.27833018]
[1741572286683,24.13493018,127.33,127.29,6.1434]
[1741572287079,31.98783018,127.34,127.29,38.13433018]
[1741572287278,7.8492,127.4,127.29,210.4934]
[1741572287594,24.13493018,127.37,127.32,24.13493018]
[1741572287779,24.13493018,127.34,127.32,7.64]
[1741572287978,44.13493018,127.35,127.32,7.64]
[1741572288587,51.98733018,127.35,127.32,7.64]
[1741572288786,24.13493018,127.34,127.32,7.64]
[1741572289031,20.0,127.35,127.3,24.13493018]
[1741572289181,20.0,127.35,127.31,7.64]
[1741572289387,38.64964886,127.3,127.29,0.063]
[1741572289991,20.0,127.3,127.29,0.063]
[1741572290699,51.99033018,127.3,127.29,0.063]
[1741572293416,27.8554,127.3,127.29,0.063]
[1741572293610,51.99033018,127.3,127.29,0.063]
[1741572294032,18.64964886,127.25,127.16,383.554]
[1741572294311,18.64964886,127.25,127.16,291.88893018]
[1741572294312,24.13493018,127.21,127.16,291.88893018]
[1741572294497,44.13493018,127.22,127.16,291.88893018]
[1741572295023,24.13493018,127.21,127.16,267.754]
[1741572295228,24.13493018,127.18,127.14,83.4164187]
[1741572295729,20.0,127.18,127.15,24.13493018]
[1741572296028,20.0,127.21,127.15,7.64]
[1741572296202,20.0,127.21,127.16,24.13493018]
[1741572296507,58.68776747,127.21,127.16,38.68776747]
[1741572297104,38.68776747,127.22,127.17,38.68776747]
[1741572297306,38.68776747,127.22,127.16,235.18176747]
[1741572297894,38.68776747,127.2,127.16,196.494]
[1741572298100,38.68776747,127.21,127.16,196.494]
[1741572298301,38.68776747,127.21,127.16,235.18176747]
[1741572298713,46.54706747,127.24,127.19,38.68776747]
[1741572299300,46.54706747,127.24,127.18,38.68776747]
[1741572299609,38.68776747,127.23,127.18,38.68776747]
[1741572299815,76.98351633,127.26,127.18,38.68776747]
[1741572299816,38.68776747,127.26,127.21,38.68776747]
[1741572299999,38.68776747,127.29,127.23,38.68776747]
[1741572300189,38.68776747,127.29,127.23,119.38176747]
[1741572300387,46.54316747,127.3,127.24,38.68776747]
[1741572300602,38.68776747,127.32,127.27,38.68776747]
[1741572300913,38.68776747,127.35,127.3,38.68776747]
[1741572301112,38.68776747,127.32,127.27,211.9912]
[1741572301317,38.68776747,127.31,127.27,88.334]
[1741572301493,38.68776747,127.29,127.27,7.64]
[1741572302205,38.68776747,127.28,127.24,80.694]
[1741572302518,38.68776747,127.25,127.2,196.494]
[1741572302690,38.68776747,127.25,127.2,235.18176747]
[1741572302896,58.68776747,127.27,127.22,38.68776747]
[1741572303090,38.68776747,127.25,127.22,80.694]
[1741572303310,38.68776747,127.24,127.22,80.694]
[1741572303519,58.68776747,127.23,127.22,80.694]
[1741572303698,38.68776747,127.25,127.22,80.694]
[1741572303911,38.68776747,127.3,127.24,38.68776747]
[1741572304112,7.8529,127.34,127.27,18.64964886]
[1741572304412,38.68776747,127.32,127.27,235.98776747]
[1741572304607,7.8529,127.34,127.27,235.98776747]
[1741572304608,38.68776747,127.34,127.29,38.68776747]
[1741572304789,7.8807,127.38,127.33,38.68776747]
[1741572304991,0.03,127.38,127.33,235.98776747]
[1741572305195,38.71776747,127.38,127.33,235.98776747]
[1741572305515,38.68776747,127.37,127.33,197.3]
[1741572305716,0.03,127.38,127.33,235.98776747]
[1741572306017,38.71776747,127.38,127.33,235.98776747]
[1741572306204,38.71776747,127.38,127.3,204.94]
[1741572306205,38.68776747,127.34,127.3,204.94]
[1741572306405,38.68776747,127.34,127.3,89.14]
[1741572306704,58.68776747,127.35,127.31,18.64964886]
[1741572306903,38.71776747,127.38,127.32,38.68776747]
[1741572307112,38.68776747,127.34,127.32,197.3]
[1741572307314,38.68776747,127.35,127.3,89.14]
[1741572307507,38.71776747,127.38,127.31,18.64964886]
[1741572307508,46.53886747,127.37,127.31,18.64964886]
[1741572307711,46.56826747,127.38,127.33,38.68776747]
[1741572308221,38.68776747,127.37,127.33,18.64964886]
[1741572308734,7.8517,127.36,127.33,18.64964886]
[1741572309112,46.53906747,127.37,127.33,18.64964886]
[1741572309312,46.56846747,127.38,127.33,215.94964886]
[1741572309618,38.68776747,127.36,127.33,197.3]
[1741572309927,38.68776747,127.35,127.31,197.3]
[1741572310237,38.68776747,127.33,127.27,438.74496747]
[1741572310412,38.68776747,127.33,127.28,18.64964886]
[1741572310714,38.68776747,127.33,127.28,26.50604886]
[1741572311011,101.04964886,127.37,127.27,392.2]
[1741572311012,38.68776747,127.32,127.27,392.2]
[1741572311224,38.68776747,127.32,127.28,18.64964886]
[1741572311547,38.68776747,127.31,127.27,392.18]
[1741572312112,58.68776747,127.32,127.27,400.0372]
[1741572312303,58.68776747,127.32,127.27,392.18]
[1741572312625,38.68776747,127.31,127.27,392.18]
[1741572312920,46.54316747,127.3,127.27,384.52]
[1741572313099,46.54316747,127.3,127.27,268.72]
[1741572313295,38.68776747,127.29,127.27,268.72]
[1741572313532,38.68776747,127.28,127.27,187.22]
[1741572313817,38.68776747,127.28,127.25,81.5]
[1741572314006,27.494,127.3,127.23,115.863]
[1741572314007,38.68776747,127.26,127.23,115.863]
[1741572314320,38.68776747,127.26,127.23,0.063]
[1741572314994,46.54586747,127.26,127.23,0.063]
[1741572315724,38.68776747,127.24,127.23,0.063]
[1741572315904,38.68776747,127.27,127.23,0.063]
[1741572316299,58.68776747,127.27,127.23,0.063]
[1741572316510,20.0,127.27,127.23,38.75076747]
[1741572316700,38.68776747,127.29,127.24,38.68776747]
[1741572317122,46.54376747,127.29,127.23,38.75076747]
[1741572317321,46.54376747,127.29,127.23,236.05076747]
[1741572317524,38.68776747,127.29,127.23,236.05076747]
[1741572317699,38.71776747,127.29,127.23,236.05076747]
[1741572318223,38.68776747,127.26,127.23,197.363]
[1741572318410,38.68776747,127.26,127.23,81.563]
[1741572318605,38.68776747,127.25,127.23,81.563]
[1741572319110,46.54626747,127.25,127.23,0.063]
[1741572319717,58.68776747,127.26,127.23,0.063]
[1741572320022,38.68776747,127.26,127.23,0.063]
[1741572320523,7.8566,127.28,127.23,0.063]
[1741572320703,20.0,127.25,127.23,0.063]
[1741572321404,20.0,127.27,127.23,38.75076747]
[1741572321709,58.68776747,127.27,127.23,0.063]
[1741572321904,38.68776747,127.26,127.23,0.063]
[1741572322118,38.68776747,127.25,127.23,0.063]
[1741572323027,58.68776747,127.26,127.23,0.063]
[1741572323530,7.8585,127.25,127.23,0.063]
[1741572323714,26.321,127.29,127.23,0.063]
[1741572323715,27.8568,127.28,127.23,0.063]
[1741572323916,38.68776747,127.26,127.23,0.063]
[1741572324111,27.8568,127.28,127.23,0.063]
[1741572324112,38.68776747,127.25,127.23,0.063]
[1741572324317,20.0,127.24,127.23,0.063]
[1741572325011,38.68776747,127.24,127.23,0.063]
[1741572325219,46.54686747,127.24,127.23,0.063]
[1741572325415,20.0,127.21,127.15,44.83936747]
[1741572325622,38.68776747,127.19,127.15,7.64]
[1741572326107,38.68776747,127.16,127.14,2.7224187]
[1741572326619,20.0,127.17,127.14,2.7224187]
[1741572326940,38.68776747,127.16,127.14,2.7224187]
[1741572327112,58.68776747,127.18,127.14,2.7224187]
[1741572327310,7.8634,127.17,127.14,2.7224187]
[1741572327510,46.55116747,127.17,127.14,2.7224187]
[1741572327726,38.68776747,127.16,127.14,2.7224187]
[1741572329006,20.0,127.15,127.14,2.7224187]
[1741572329427,27.8647,127.15,127.14,2.7224187]
[1741572329803,46.55246747,127.15,127.14,2.7224187]
[1741572330605,7.8647,127.15,127.14,2.7224187]
[1741572331233,102.0573,127.18,127.14,2.7224187]
[1741572331234,46.55116747,127.17,127.14,2.7224187]
[1741572331414,38.68776747,127.15,127.14,2.7224187]
[1741572333536,20.0,127.12,127.1,0.063]
[1741572333722,58.68776747,127.11,127.1,0.063]
[1741572334525,60.26246747,127.11,127.1,0.063]
[1741572335318,68.12966747,127.11,127.1,0.063]
[1741572335529,82.4,127.1,127.02,235.98776747]
[1741572335817,38.68776747,127.06,127.02,197.3]
[1741572336316,38.68776747,127.06,127.01,46.41076747]
[1741572336519,38.68776747,127.07,127.02,38.68776747]
[1741572336715,29.4419,127.11,127.04,38.68776747]
[1741572336915,38.68776747,127.08,127.03,38.68776747]
[1741572337119,29.4419,127.11,127.04,38.68776747]
[1741572337338,38.68776747,127.09,127.02,81.5]
[1741572337632,38.68776747,127.09,127.04,38.68776747]
[1741572338213,38.68776747,127.12,127.07,38.68776747]
[1741572338410,90.6798,127.15,127.04,197.3]
[1741572338411,122.73436747,127.15,127.06,13.8017]
[1741572338719,38.68776747,127.12,127.07,38.68776747]
[1741572338928,38.68776747,127.11,127.06,133.98946747]
[1741572339317,38.68776747,127.14,127.06,89.16]
[1741572339318,38.68776747,127.1,127.06,89.16]
[1741572339521,38.68776747,127.1,127.06,7.66]
[1741572339730,38.68776747,127.07,127.06,7.66]
[1741572340040,120.71454886,127.13,127.02,87.6417]
[1741572340041,38.68776747,127.09,127.04,38.68776747]
[1741572340229,38.68776747,127.1,127.05,38.68776747]
[1741572340533,58.68776747,127.09,127.04,38.68776747]
[1741572340925,58.68776747,127.09,127.03,38.68776747]
[1741572341226,58.68776747,127.09,127.04,38.68776747]
[1741572341426,90.2668,127.12,127.06,38.68776747]
[1741572341623,38.68776747,127.11,127.06,38.68776747]
[1741572341830,38.68776747,127.09,127.04,38.68776747]
[1741572342238,38.68776747,127.09,127.04,38.75076747]
[1741572342444,38.68776747,127.1,127.05,38.68776747]
[1741572342743,38.68776747,127.1,127.04,38.75076747]
[1741572342915,38.68776747,127.1,127.05,38.68776747]
[1741572343119,38.68776747,127.11,127.05,38.68776747]
[1741572343347,38.68776747,127.12,127.07,38.68776747]
[1741572343531,90.2661,127.13,127.08,7.869]
[1741572343838,38.68776747,127.12,127.07,7.8694]
[1741572344229,38.68776747,127.12,127.07,46.55716747]
[1741572344746,38.68776747,127.12,127.07,7.8694]
[1741572345129,38.68776747,127.11,127.07,7.8694]
[1741572346247,38.68776747,127.11,127.06,7.66]
[1741572346436,38.68776747,127.09,127.06,7.66]
[1741572346944,38.68776747,127.1,127.06,7.66]
[1741572347753,46.55556747,127.1,127.06,7.66]
[1741572348551,46.55516747,127.11,127.06,54.21786747]
[1741572348857,38.68776747,127.1,127.06,7.66]
[1741572349523,38.68776747,127.1,127.06,15.5302]
[1741572350235,46.55566747,127.1,127.06,7.66]
[1741572351157,38.68776747,127.1,127.06,7.66]
[1741572351334,38.68776747,127.1,127.06,15.5302]
[1741572351645,46.55556747,127.1,127.06,7.66]
[1741572351946,38.68776747,127.13,127.07,38.68776747]
[1741572352123,46.55366747,127.13,127.06,212.8302]
[1741572352328,46.55366747,127.13,127.08,38.68776747]
[1741572352528,46.55366747,127.13,127.07,38.68776747]
[1741572353149,46.55366747,127.13,127.07,46.55726747]
[1741572353529,7.8659,127.13,127.08,38.68776747]
[1741572353729,46.55366747,127.13,127.08,38.68776747]
[1741572353930,7.8656,127.14,127.09,38.68776747]
[1741572354130,46.55336747,127.14,127.09,38.68776747]
[1741572354331,38.68776747,127.14,127.09,38.68776747]
[1741572354526,46.55316747,127.14,127.09,38.68776747]
[1741572354733,7.8654,127.14,127.09,38.68776747]
[1741572354932,46.55316747,127.14,127.09,38.68776747]
[1741572355143,38.68776747,127.15,127.1,46.55556747]
[1741572355343,20.0,127.15,127.09,88.0947]
[1741572355758,20.0,127.15,127.11,38.68776747]
[1741572356363,20.0,127.15,127.12,38.68776747]
[1741572356665,20.0,127.15,127.11,38.68776747]
[1741572357147,27.8649,127.15,127.11,38.68776747]
[1741572357347,27.8649,127.15,127.1,154.48776747]
[1741572357849,66.55266747,127.15,127.1,154.48776747]
[1741572358045,38.68776747,127.13,127.09,81.5]
[1741572358241,38.68776747,127.13,127.08,115.8]
[1741572358640,38.68776747,127.14,127.08,154.48776747]
[1741572358969,66.55266747,127.15,127.1,38.68776747]
[1741572359955,38.68776747,127.14,127.08,38.68776747]
[1741572360284,38.68776747,127.13,127.07,423.46776747]
[1741572360471,38.68776747,127.13,127.08,38.68776747]
[1741572360841,38.68776747,127.12,127.07,268.98]
[1741572361051,38.68776747,127.1,127.07,268.98]
[1741572361251,38.68776747,127.1,127.05,46.34776747]
[1741572361452,48.10566747,127.12,127.07,38.68776747]
[1741572361765,46.55456747,127.12,127.06,38.68776747]
[1741572362543,46.55456747,127.12,127.07,38.68776747]
[1741572362776,38.68776747,127.11,127.06,38.68776747]
[1741572362954,38.68776747,127.1,127.05,46.34776747]
[1741572363143,46.55456747,127.12,127.07,38.68776747]
[1741572363343,46.55386747,127.13,127.08,38.68776747]
[1741572363776,46.55386747,127.13,127.07,38.68776747]
[1741572363964,38.68776747,127.12,127.07,38.68776747]
[1741572364478,46.55386747,127.13,127.07,38.68776747]
[1741572364664,38.68776747,127.12,127.07,38.68776747]
[1741572364973,46.55386747,127.13,127.08,7.869]
[1741572365153,7.8647,127.15,127.1,38.68776747]
[1741572365353,38.68776747,127.14,127.09,38.68776747]
[1741572365557,38.68776747,127.13,127.08,197.3]
[1741572365744,38.68776747,127.12,127.08,197.3]
[1741572366054,38.68776747,127.11,127.06,38.68776747]
[1741572366253,38.68776747,127.12,127.06,38.68776747]
[1741572366454,38.68776747,127.12,127.07,38.68776747]
[1741572366855,38.68776747,127.13,127.07,38.68776747]
[1741572367064,46.55396747,127.13,127.08,38.68776747]
[1741572367556,7.8662,127.13,127.08,38.68776747]
[1741572367751,38.68776747,127.15,127.1,38.68776747]
[1741572367958,0.03,127.13,127.09,38.68776747]
[1741572368357,0.03,127.13,127.09,24.20952039]
[1741572368662,0.03,127.13,127.08,221.50952039]
[1741572369269,0.03,127.13,127.1,24.20952039]
[1741572370472,0.03,127.13,127.08,221.50952039]
[1741572370775,24.23952039,127.13,127.08,197.3]
[1741572370959,24.23952039,127.13,127.08,221.50952039]
[1741572371469,24.20952039,127.12,127.05,195.12]
[1741572371681,24.20952039,127.1,127.05,392.42]
[1741572371973,24.20952039,127.12,127.06,24.20952039]
[1741572372269,24.20952039,127.12,127.07,24.20952039]
[1741572372462,7.8671,127.12,127.07,24.20952039]
[1741572372972,24.23952039,127.13,127.08,24.20952039]
[1741572373155,32.10572039,127.13,127.08,24.20952039]
[1741572374277,32.10572039,127.13,127.08,32.07852039]
[1741572374876,0.03,127.13,127.1,24.20952039]
[1741572375064,0.03,127.13,127.09,24.20952039]
[1741572375261,7.896,127.13,127.08,24.20952039]
[1741572376489,32.10552039,127.13,127.07,24.20952039]
[1741572376778,32.10552039,127.13,127.07,32.07892039]
[1741572376983,24.20952039,127.12,127.07,32.07892039]
[1741572377491,24.20952039,127.12,127.06,105.70952039]
[1741572377669,24.20952039,127.1,127.06,81.5]
[1741572378188,24.20952039,127.11,127.06,113.57972039]
[1741572378363,32.07712039,127.11,127.06,105.70952039]
[1741572378562,32.07712039,127.11,127.06,81.5]
[1741572378754,32.07712039,127.11,127.06,100.70952039]
[1741572378950,32.07712039,127.11,127.06,108.57972039]
[1741572379167,32.07712039,127.11,127.06,76.5]
[1741572379364,25.71882039,127.1,127.06,76.5]
[1741572379659,1.5093,127.1,127.06,100.70952039]
[1741572380683,1.5093,127.1,127.06,76.5]
[1741572380879,1.5093,127.1,127.05,155.54022039]
[1741572381062,1.5093,127.1,127.05,147.88022039]
[1741572381994,89.9737,127.13,127.07,24.20952039]
[1741572382297,0.03,127.13,127.1,24.20952039]
[1741572382489,0.03,127.13,127.11,24.20952039]
[1741572382782,0.03,127.13,127.11,32.07602039]
[1741572383089,0.03,127.13,127.12,24.20952039]
[1741572383603,0.03,127.13,127.12,212.10952039]
[1741572384089,0.03,127.13,127.12,230.75916925]
[1741572384467,1.5344,127.2,127.13,95.14964886]
[1741572384782,12.16205241,127.22,127.19,24.20952039]
[1741572385163,12.16205241,127.22,127.18,24.20952039]
[1741572385584,36.3715728,127.22,127.17,24.20952039]
[1741572385787,24.20952039,127.19,127.14,39.73482039]
[1741572385992,7.8606,127.22,127.16,24.20952039]
[1741572386280,32.07012039,127.22,127.16,24.20952039]
[1741572386460,24.20952039,127.22,127.17,24.20952039]
[1741572386872,25.74652039,127.23,127.17,100.70952039]
[1741572387071,33.60632039,127.23,127.18,24.20952039]
[1741572387891,1.537,127.23,127.19,24.20952039]
[1741572388100,33.60652039,127.23,127.18,24.20952039]
[1741572388268,25.74652039,127.23,127.18,24.20952039]
[1741572388599,1.537,127.23,127.19,24.20952039]
[1741572388768,1.537,127.23,127.19,39.71142039]
[1741572388962,0.03,127.23,127.22,24.20952039]
[1741572389203,0.03,127.23,127.22,100.70952039]
[1741572389681,0.03,127.23,127.22,76.5]
[1741572390676,7.8897,127.23,127.22,76.5]
[1741572390864,46.56399731,127.23,127.19,7.64]
[1741572391064,38.70429731,127.23,127.19,7.64]
[1741572391278,0.03,127.23,127.19,54.17629731]
[1741572391476,0.03,127.23,127.2,38.67429731]
[1741572392266,0.03,127.23,127.21,38.67429731]
[1741572392591,0.03,127.23,127.2,38.67429731]
[1741572392784,0.03,127.23,127.19,46.31429731]
[1741572393172,0.03,127.23,127.19,54.17649731]
[1741572393493,0.03,127.23,127.2,38.67429731]
[1741572393977,0.03,127.23,127.22,38.67429731]
[1741572394175,0.03,127.29,127.23,18.64964886]
[1741572394387,0.03,127.29,127.27,38.67429731]
[1741572394778,0.03,127.29,127.26,38.67429731]
[1741572394976,38.70429731,127.29,127.24,242.07289731]
[1741572395177,58.67429731,127.28,127.24,7.64]
[1741572395490,40.32959731,127.27,127.24,7.64]
[1741572395711,1.6553,127.27,127.24,46.31429731]
[1741572395987,0.03,127.29,127.26,38.67429731]
[1741572396185,0.03,127.29,127.27,38.67429731]
[1741572396385,0.03,127.29,127.26,38.67429731]
[1741572396588,0.03,127.29,127.25,38.67429731]
[1741572396776,0.03,127.29,127.26,38.67429731]
[1741572396974,0.03,127.29,127.27,7.8573]
[1741572397382,0.03,127.29,127.27,46.53159731]
[1741572398493,0.03,127.29,127.28,38.67429731]
[1741572398994,0.03,127.29,127.28,46.53089731]
[1741572399795,0.03,127.29,127.28,7.8566]
[1741572399983,0.03,127.29,127.28,46.53089731]
[1741572401300,0.03,127.29,127.27,195.757]
[1741572401617,0.03,127.29,127.27,187.9]
[1741572401776,38.70429731,127.29,127.24,187.9]
[1741572401977,38.67429731,127.28,127.23,38.67429731]
[1741572402686,58.70429731,127.29,127.24,38.67429731]
[1741572402995,66.56049731,127.29,127.23,46.53379731]
[1741572403176,58.70429731,127.29,127.23,46.53379731]
[1741572403903,58.70429731,127.29,127.24,38.67429731]
[1741572404306,66.56039731,127.29,127.24,38.67429731]
[1741572404688,66.56039731,127.29,127.23,46.53379731]
[1741572407410,27.8861,127.29,127.24,38.67429731]
[1741572407613,20.03,127.29,127.26,38.67429731]
[1741572407998,0.03,127.29,127.27,38.67429731]
[1741572408509,0.03,127.29,127.26,38.67429731]
[1741572408807,0.03,127.29,127.26,46.53209731]
[1741572409186,0.03,127.29,127.28,38.67429731]
[1741572410286,0.03,127.29,127.28,24.13822043]
[1741572410785,0.03,127.29,127.28,31.99482043]
[1741572412802,0.03,127.29,127.28,219.89482043]
[1741572413425,0.03,127.29,127.28,407.09482043]
[1741572417100,0.03,127.29,127.28,399.23822043]
[1741572417410,0.03,127.29,127.28,407.09482043]
[1741572418312,0.00678642,127.29,127.28,407.09482043]
[1741572419511,0.00678642,127.29,127.28,219.19482043]
[1741572420597,0.03,127.36,127.28,427.74446929]
[1741572420796,0.03,127.36,127.34,24.13822043]
[1741572421805,0.03,127.36,127.35,24.13822043]
[1741572422017,0.03,127.36,127.35,230.68786929]
[1741572422227,0.03,127.38,127.35,230.68786929]
[1741572422526,0.03,127.38,127.37,24.13822043]
[1741572422696,0.03,127.38,127.37,31.77822043]
[1741572423506,0.03,127.38,127.37,39.62932043]
[1741572423702,0.03,127.38,127.37,63.76754086]
[1741572423901,0.0001,127.38,127.37,82.41718972]
[1741572425039,0.03,127.42,127.37,291.12204172]
[1741572425331,0.03,127.42,127.41,24.13822043]
[1741572425497,0.03,127.42,127.41,219.88682043]
[1741572426121,0.03,127.42,127.41,212.03822043]
[1741572428514,0.03,127.42,127.41,219.88682043]
[1741572428901,0.03,127.42,127.41,212.03822043]
[1741572429208,0.03,127.42,127.41,219.88682043]
[1741572429615,0.03,127.42,127.41,212.03822043]
[1741572431328,0.03,127.42,127.4,7.8492]
[1741572431329,0.03,127.42,127.38,263.6]
[1741572431517,20.0,127.41,127.38,187.1]
[1741572431717,20.0,127.41,127.38,211.23822043]
[1741572432025,0.03,127.42,127.4,24.13822043]
[1741572432230,0.03,127.42,127.41,24.13822043]
[1741572433929,0.03,127.42,127.4,24.13822043]
[1741572434139,0.03,127.42,127.39,24.13822043]
[1741572434630,1.6583,127.41,127.38,187.1]
[1741572434941,1.6583,127.41,127.38,211.23822043]
[1741572435112,0.03,127.42,127.4,24.13822043]
[1741572435304,0.03,127.42,127.38,382.8504]
[1741572435509,0.03,127.42,127.39,24.13822043]
[1741572435712,0.03,127.42,127.41,24.13822043]
[1741572436230,0.03,127.42,127.41,31.98682043]
[1741572436828,0.03,127.42,127.41,39.60682043]
[1741572441232,0.03,127.42,127.41,7.62]
[1741572441535,0.03,127.42,127.41,24.13822043]
[1741572442130,0.03,127.42,127.4,24.13822043]
[1741572443034,0.03,127.42,127.41,24.13822043]
[1741572443536,0.03,127.42,127.41,31.98682043]
[1741572444160,6.3354,127.47,127.41,81.06148972]
[1741572444161,0.03,127.47,127.41,81.06148972]
[1741572444434,0.03,127.47,127.46,24.13822043]
[1741572445621,0.03,127.47,127.46,31.98372043]
[1741572446116,0.03,127.47,127.46,24.13822043]
[1741572447649,0.03,127.47,127.45,24.13822043]
[1741572447939,0.03,127.47,127.44,31.75822043]
[1741572448133,0.03,127.47,127.46,24.13822043]
[1741572449235,0.5,127.5,127.46,230.68786929]
[1741572449418,0.5,127.5,127.49,24.13822043]
[1741572449733,0.5,127.5,127.49,82.38978972]
[1741572450326,0.5,127.5,127.49,58.25156929]
[1741572450734,0.5,127.5,127.49,31.75822043]
[1741572451251,0.5,127.5,127.49,39.60192043]
[1741572451449,0.5,127.5,127.49,7.62]
[1741572451749,8.3431,127.5,127.48,186.96]
[1741572452129,38.70432043,127.5,127.48,186.96]
[1741572453657,14.5661,127.5,127.48,186.96]
[1741572453953,14.5661,127.5,127.46,24.13822043]
[1741572454134,6.723,127.5,127.47,24.13822043]
[1741572454536,0.5,127.5,127.48,24.13822043]
[1741572454937,0.5,127.5,127.49,24.13822043]
[1741572455657,0.5,127.5,127.48,24.13822043]
[1741572455843,0.5,127.5,127.47,24.13822043]
[1741572456253,8.3431,127.5,127.47,24.13822043]
[1741572456455,8.3431,127.5,127.44,7.62]
[1741572456667,8.3431,127.5,127.45,24.13822043]
[1741572456962,8.3431,127.5,127.46,24.13822043]